Workbook

Sheet Wi System
B1: Version: 1.8 | E1: =IF(AD4=TRUE," ",IF(AJ2=TRUE,"A newer version is available to download. Please visit our website."," ")) ->  | S1: © 2023 YourSpreadsheets and Wembley Innovation
E2: Wembley Innovation Ltd Unit 5 Fourth Way, Wembley, Middlesex, HA9 0LH info@wembleyinnovation.co.uk Tel: 0208 903 4527 | Q2: Wi SYSTEM DESIGN SOFTWARE | AD2: Latest revision: | AE2: https://www.wembleyinnovation.co.uk/ | AJ2: =URLExists(AE2) -> TRUE | AK2: (CHECKS IF SITE IS ONLINE)
W3: Job No: | AD3: http://wembleyinnovation.co.uk/wp-content/uploads/2023/09/Wi-System-design-spreadsheet-v1.8.xlsm | AQ3: Beam - summary of loads | AY3: Column - summary of loads
W4: Revision | AD4: =URLExists(AD3) -> TRUE | AE4: (CHECKS IF VERSION STILL CURRENT) | AS4: load magnitude | BA4: magnitude | BG4: Beam - bending moment (unfactored)
Q5: Prepared By: | W5: Page: | AQ5: start | AR5: stop | AS5: sum | AT5: top | AU5: bottom | AV5: left reaction | AY5: start | AZ5: stop | BA5: sum | BB5: left | BC5: right | BD5: bottom (taken as left) reaction | BE5: top (taken as right) reaction | BG5: x= | BH5: 0 | BI5: =$N$17/100 -> 0.05 | BJ5: =$N$17/100+BI5 -> 0.1 | BK5: =$N$17/100+BJ5 -> 0.15 | BL5: 0.2 | BM5: 0.25 | BN5: 0.3 | BO5: 0.35 | BP5: 0.4 | BQ5: 0.45 | BR5: 0.5 | BS5: 0.55 | BT5: 0.6 | BU5: 0.65 | BV5: 0.7 | BW5: 0.75 | BX5: 0.8 | BY5: 0.85 | BZ5: 0.9 | CA5: 0.95 | CB5: 1 | CC5: 1.05 | CD5: 1.1 | CE5: 1.15 | CF5: 1.2 | CG5: 1.25 | CH5: 1.3 | CI5: 1.35 | CJ5: 1.4 | CK5: 1.45 | CL5: 1.5 | CM5: 1.55 | CN5: 1.6 | CO5: 1.65 | CP5: 1.7 | CQ5: 1.75 | CR5: 1.8 | CS5: 1.85 | CT5: 1.9 | CU5: 1.95 | CV5: 2 | CW5: 2.05 | CX5: 2.1 | CY5: 2.15 | CZ5: 2.2 | DA5: 2.25 | DB5: 2.3 | DC5: 2.35 | DD5: 2.4 | DE5: 2.45 | DF5: 2.5 | DG5: 2.55 | DH5: 2.6 | DI5: 2.65 | DJ5: 2.7 | DK5: 2.75 | DL5: 2.8 | DM5: 2.85 | DN5: 2.9 | DO5: 2.95 | DP5: 3 | DQ5: 3.05 | DR5: 3.1 | DS5: 3.15 | DT5: 3.2 | DU5: 3.25 | DV5: 3.3 | DW5: =$N$17/100+DV5 -> 3.35 | DX5: 3.4 | DY5: 3.45 | DZ5: 3.5 | EA5: 3.55 | EB5: 3.6 | EC5: 3.65 | ED5: 3.7 | EE5: 3.75 | EF5: 3.8 | EG5: 3.85 | EH5: 3.9 | EI5: 3.95 | EJ5: 4 | EK5: 4.05 | EL5: 4.1 | EM5: 4.15 | EN5: 4.2 | EO5: 4.25 | EP5: 4.3 | EQ5: 4.35 | ER5: 4.4 | ES5: 4.45 | ET5: 4.5 | EU5: 4.55 | EV5: 4.6 | EW5: 4.65 | EX5: 4.7 | EY5: 4.75 | EZ5: 4.8 | FA5: 4.85 | FB5: 4.9 | FC5: 4.95 | FD5: 5
C6: Wall Ref.: | Q6: Checked By: | W6: Date: | AP6: rectangular | AQ6: 0 | AR6: =N17 -> 5 | AS6: =AQ20+AT6+AU6 -> 0.09 | AT6: =IF(L14=AD19,0,IF($L$10=$AD$14,INDEX(AQ21:AS21,1,MATCH(L14,AD17:AD19,0)),INDEX(AT21:AV21,1,MATCH(L14,AD17:AD19,0)))) -> 0 | AU6: =IF(L15=AD19,0,IF($L$10=$AD$14,INDEX(AQ22:AS22,1,MATCH(L15,AD17:AD19,0)),INDEX(AT22:AV22,1,MATCH(L15,AD17:AD19,0)))) -> 0 | AV6: =AS6*$N$17/2 -> 0.225 | AX6: rectangular | AY6: 0 | AZ6: =N17 -> 5 | BA6: =AY20+BB6+BC6 -> 0.18 | BB6: =IF(AND(L10=AD14,L14=AD19),0,IF($L$10=$AD$14,INDEX(AY21:BA21,1,MATCH(L14,AD17:AD19,0)),INDEX(BB21:BD21,1,MATCH(L14,AD17:AD19,0)))) -> 0 | BC6: =IF(AND(L10=AD14,L15=AD19),0,IF($L$10=$AD$14,INDEX(AY22:BA22,1,MATCH(L15,AD17:AD19,0)),INDEX(BB22:BD22,1,MATCH(L15,AD17:AD19,0)))) -> 0 | BD6: =BA6*$N$17/2 -> 0.45 | BE6: =BD6 -> 0.45 | BG6: rectangular | BH6: 0 | BI6: =-$AV$6*BI5+$AS$6*BI5^2/2 -> -0.0111375 | BJ6: =-$AV$6*BJ5+$AS$6*BJ5^2/2 -> -0.02205 | BK6: -0.0327375 | BL6: -0.0432 | BM6: -0.0534375 | BN6: -0.06345 | BO6: -0.0732375 | BP6: -0.0828 | BQ6: -0.0921375 | BR6: -0.10125 | BS6: -0.1101375 | BT6: -0.1188 | BU6: -0.1272375 | BV6: -0.13545 | BW6: -0.1434375 | BX6: -0.1512 | BY6: -0.1587375 | BZ6: -0.16605 | CA6: -0.1731375 | CB6: -0.18 | CC6: -0.1866375 | CD6: -0.19305 | CE6: -0.1992375 | CF6: -0.2052 | CG6: -0.2109375 | CH6: -0.21645 | CI6: -0.2217375 | CJ6: -0.2268 | CK6: -0.2316375 | CL6: -0.23625 | CM6: -0.2406375 | CN6: -0.2448 | CO6: -0.2487375 | CP6: -0.25245 | CQ6: -0.2559375 | CR6: -0.2592 | CS6: -0.2622375 | CT6: -0.26505 | CU6: -0.2676375 | CV6: -0.27 | CW6: -0.2721375 | CX6: -0.27405 | CY6: -0.2757375 | CZ6: -0.2772 | DA6: -0.2784375 | DB6: -0.27945 | DC6: -0.2802375 | DD6: -0.2808 | DE6: -0.2811375 | DF6: -0.28125 | DG6: -0.2811375 | DH6: -0.2808 | DI6: -0.2802375 | DJ6: -0.27945 | DK6: -0.2784375 | DL6: -0.2772 | DM6: -0.2757375 | DN6: -0.27405 | DO6: -0.2721375 | DP6: -0.27 | DQ6: -0.2676375 | DR6: -0.26505 | DS6: -0.2622375 | DT6: -0.2592 | DU6: -0.2559375 | DV6: =-$AV$6*DV5+$AS$6*DV5^2/2 -> -0.25245 | DW6: -0.2487375 | DX6: -0.2448 | DY6: -0.2406375 | DZ6: -0.23625 | EA6: -0.2316375 | EB6: -0.2268 | EC6: -0.2217375 | ED6: -0.21645 | EE6: -0.2109375 | EF6: -0.2052 | EG6: -0.1992375 | EH6: -0.19305 | EI6: -0.1866375 | EJ6: -0.18 | EK6: -0.1731375 | EL6: -0.16605 | EM6: -0.1587375 | EN6: -0.1512 | EO6: -0.1434375 | EP6: -0.13545 | EQ6: -0.1272375 | ER6: -0.1188 | ES6: -0.1101375 | ET6: -0.10125 | EU6: -0.0921375 | EV6: -0.0828 | EW6: -0.0732375 | EX6: -0.06345 | EY6: -0.0534375 | EZ6: -0.0432 | FA6: -0.0327375 | FB6: -0.02205 | FC6: -0.0111375 | FD6: -2.442490654e-15
AD7: FIXED BY VBA | AP7: triangle | AQ7: 0 | AR7: =N17 -> 5 | AS7: =AT7+AU7 -> 2 | AT7: =IF(L14=AD19,IF($L$10=$AD$14,INDEX(AQ21:AS21,1,MATCH(L14,AD17:AD19,0)),INDEX(AT21:AV21,1,MATCH(L14,AD17:AD19,0))),0) -> 1 | AU7: =IF(L15=AD19,IF($L$10=$AD$14,INDEX(AQ22:AS22,1,MATCH(L15,AD17:AD19,0)),INDEX(AT22:AV22,1,MATCH(L15,AD17:AD19,0))),0) -> 1 | AV7: =AS7*$N$17/4 -> 2.5 | AW7: half of loaded length (for moment diagram cacls) | AX7: triangle | AY7: 0 | AZ7: =N17 -> 5 | BA7: =BB7+BC7 -> 2 | BB7: =IF(AND(L10=AD14,L14=AD19),IF($L$10=$AD$14,INDEX(AY21:BA21,1,MATCH(L14,AD17:AD19,0)),INDEX(BB21:BD21,1,MATCH(L14,AD17:AD19,0))),0) -> 1 | BC7: =IF(AND(L10=AD14,L15=AD19),IF($L$10=$AD$14,INDEX(AY22:BA22,1,MATCH(L15,AD17:AD19,0)),INDEX(BB22:BD22,1,MATCH(L15,AD17:AD19,0))),0) -> 1 | BD7: =BA7*$N$17/4 -> 2.5 | BE7: =BD7 -> 2.5 | BF7: half of loaded length (for moment diagram cacls) | BG7: triangle | BH7: 0 | BI7: =-$AV$7*BI5+$AS$7*BI5^3/3/$AR$7 -> -0.1249833333 | BJ7: -0.2498666667 | BK7: -0.37455 | BL7: -0.4989333333 | BM7: -0.6229166667 | BN7: -0.7464 | BO7: -0.8692833333 | BP7: -0.9914666667 | BQ7: -1.11285 | BR7: -1.233333333 | BS7: -1.352816667 | BT7: -1.4712 | BU7: -1.588383333 | BV7: -1.704266667 | BW7: -1.81875 | BX7: -1.931733333 | BY7: -2.043116667 | BZ7: -2.1528 | CA7: -2.260683333 | CB7: -2.366666667 | CC7: -2.47065 | CD7: -2.572533333 | CE7: -2.672216667 | CF7: -2.7696 | CG7: -2.864583333 | CH7: -2.957066667 | CI7: -3.04695 | CJ7: -3.134133333 | CK7: -3.218516667 | CL7: -3.3 | CM7: -3.378483333 | CN7: -3.453866667 | CO7: -3.52605 | CP7: -3.594933333 | CQ7: -3.660416667 | CR7: -3.7224 | CS7: -3.780783333 | CT7: -3.835466667 | CU7: -3.88635 | CV7: -3.933333333 | CW7: -3.976316667 | CX7: -4.0152 | CY7: -4.049883333 | CZ7: -4.080266667 | DA7: -4.10625 | DB7: -4.127733333 | DC7: -4.144616667 | DD7: -4.1568 | DE7: -4.164183333 | DF7: -4.166666667 | DG7: =DE7 -> -4.164183333 | DH7: =DD7 -> -4.1568 | DI7: =DC7 -> -4.144616667 | DJ7: =DB7 -> -4.127733333 | DK7: =DA7 -> -4.10625 | DL7: =CZ7 -> -4.080266667 | DM7: =CY7 -> -4.049883333 | DN7: =CX7 -> -4.0152 | DO7: =CW7 -> -3.976316667 | DP7: =CV7 -> -3.933333333 | DQ7: =CU7 -> -3.88635 | DR7: =CT7 -> -3.835466667 | DS7: =CS7 -> -3.780783333 | DT7: =CR7 -> -3.7224 | DU7: =CQ7 -> -3.660416667 | DV7: =CP7 -> -3.594933333 | DW7: =CO7 -> -3.52605 | DX7: =CN7 -> -3.453866667 | DY7: =CM7 -> -3.378483333 | DZ7: =CL7 -> -3.3 | EA7: =CK7 -> -3.218516667 | EB7: =CJ7 -> -3.134133333 | EC7: =CI7 -> -3.04695 | ED7: =CH7 -> -2.957066667 | EE7: =CG7 -> -2.864583333 | EF7: =CF7 -> -2.7696 | EG7: =CE7 -> -2.672216667 | EH7: =CD7 -> -2.572533333 | EI7: =CC7 -> -2.47065 | EJ7: =CB7 -> -2.366666667 | EK7: =CA7 -> -2.260683333 | EL7: =BZ7 -> -2.1528 | EM7: =BY7 -> -2.043116667 | EN7: =BX7 -> -1.931733333 | EO7: =BW7 -> -1.81875 | EP7: =BV7 -> -1.704266667 | EQ7: =BU7 -> -1.588383333 | ER7: =BT7 -> -1.4712 | ES7: =BS7 -> -1.352816667 | ET7: =BR7 -> -1.233333333 | EU7: =BQ7 -> -1.11285 | EV7: =BP7 -> -0.9914666667 | EW7: =BO7 -> -0.8692833333 | EX7: =BN7 -> -0.7464 | EY7: =BM7 -> -0.6229166667 | EZ7: =BL7 -> -0.4989333333 | FA7: =BK7 -> -0.37455 | FB7: =BJ7 -> -0.2498666667 | FC7: =BI7 -> -0.1249833333 | FD7: =BH7 -> 0
C8: GENERAL DATA | Q8: SUMMARY OF RESULTS | AD8: Element type: | AF8: Element width: | AP8: top negative triangle | AQ8: =IF(AH17=1,0,AD52/2) -> 0 | AR8: =IF(AH17=1,0,N17-AD52/2) -> 0 | AS8: =AT8 -> 0 | AT8: =IF(L14=AD19,AS28,0) -> 0 | AV8: =AS8*(AR8-AQ8)/4 -> 0 | AW8: =$N$17/2-AQ8 -> 2.5 | AX8: left negative triangle | AY8: =IF(AH17=1,0,AD52/2) -> 0 | AZ8: =IF(AH17=1,0,N17-AD52/2) -> 0 | BA8: =BB8 -> 0 | BB8: =IF(AND(L10=AD14,L14=AD19),BA28,0) -> 0 | BD8: =BA8*(AZ8-AY8)/4 -> 0 | BE8: =BD8 -> 0 | BF8: =$N$17/2-AY8 -> 2.5 | BG8: left negative triangle | BH8: 0 | BI8: =$AV$8*BI5-IF(BI5>$AQ$8,$AS$8/(6*$AW$8)*(BI5-$AQ$8)^3,0) -> 0 | BJ8: =$AV$8*BJ5-IF(BJ5>$AQ$8,$AS$8/(6*$AW$8)*(BJ5-$AQ$8)^3,0) -> 0 | BK8: 0 | BL8: 0 | BM8: 0 | BN8: 0 | BO8: 0 | BP8: 0 | BQ8: 0 | BR8: 0 | BS8: 0 | BT8: 0 | BU8: 0 | BV8: 0 | BW8: 0 | BX8: 0 | BY8: 0 | BZ8: 0 | CA8: 0 | CB8: 0 | CC8: 0 | CD8: 0 | CE8: 0 | CF8: 0 | CG8: 0 | CH8: 0 | CI8: 0 | CJ8: 0 | CK8: 0 | CL8: 0 | CM8: 0 | CN8: 0 | CO8: 0 | CP8: 0 | CQ8: 0 | CR8: 0 | CS8: 0 | CT8: 0 | CU8: 0 | CV8: 0 | CW8: 0 | CX8: 0 | CY8: 0 | CZ8: 0 | DA8: 0 | DB8: 0 | DC8: 0 | DD8: 0 | DE8: 0 | DF8: 0 | DG8: =DE8 -> 0 | DH8: =DD8 -> 0 | DI8: =DC8 -> 0 | DJ8: =DB8 -> 0 | DK8: =DA8 -> 0 | DL8: =CZ8 -> 0 | DM8: =CY8 -> 0 | DN8: =CX8 -> 0 | DO8: =CW8 -> 0 | DP8: =CV8 -> 0 | DQ8: =CU8 -> 0 | DR8: =CT8 -> 0 | DS8: =CS8 -> 0 | DT8: =CR8 -> 0 | DU8: =CQ8 -> 0 | DV8: =CP8 -> 0 | DW8: =CO8 -> 0 | DX8: =CN8 -> 0 | DY8: =CM8 -> 0 | DZ8: =CL8 -> 0 | EA8: =CK8 -> 0 | EB8: =CJ8 -> 0 | EC8: =CI8 -> 0 | ED8: =CH8 -> 0 | EE8: =CG8 -> 0 | EF8: =CF8 -> 0 | EG8: =CE8 -> 0 | EH8: =CD8 -> 0 | EI8: =CC8 -> 0 | EJ8: =CB8 -> 0 | EK8: =CA8 -> 0 | EL8: =BZ8 -> 0 | EM8: =BY8 -> 0 | EN8: =BX8 -> 0 | EO8: =BW8 -> 0 | EP8: =BV8 -> 0 | EQ8: =BU8 -> 0 | ER8: =BT8 -> 0 | ES8: =BS8 -> 0 | ET8: =BR8 -> 0 | EU8: =BQ8 -> 0 | EV8: =BP8 -> 0 | EW8: =BO8 -> 0 | EX8: =BN8 -> 0 | EY8: =BM8 -> 0 | EZ8: =BL8 -> 0 | FA8: =BK8 -> 0 | FB8: =BJ8 -> 0 | FC8: =BI8 -> 0 | FD8: =BH8 -> 0
H9: Element type: | L9: Wi Column | Q9: =$L$9&" utilisation ratio =" -> Wi Column utilisation ratio = | Z9: =IF($Z$27="ERROR",$Z$27,$Z$26/$Z$27) -> 0.3940972222 | AD9: Wi Beam | AF9: Single | AM9: ="Unfactored moment: load on "&IF(L9=AD9,"beam","column") -> Unfactored moment: load on column | AN9: =IF($L$10=$AD$14,AI30,AL30) -> 0.5625 | AP9: bottom negative triangle | AQ9: =IF(AH18=1,0,AD53/2) -> 0 | AR9: =IF(AH18=1,0,N17-AD53/2) -> 0 | AS9: =AU9 -> 0 | AU9: =IF(L15=AD19,AS29,0) -> 0 | AV9: =AS9*(AR9-AQ9)/4 -> 0 | AW9: =$N$17/2-AQ9 -> 2.5 | AX9: right negative triangle | AY9: =IF(AH18=1,0,AD53/2) -> 0 | AZ9: =IF(AH18=1,0,N17-AD53/2) -> 0 | BA9: =BC9 -> 0 | BC9: =IF(AND(L10=AD14,L15=AD19),BA29,0) -> 0 | BD9: =BA9*(AZ9-AY9)/4 -> 0 | BE9: =BD9 -> 0 | BF9: =$N$17/2-AY9 -> 2.5 | BG9: right negative triangle | BH9: 0 | BI9: =$AV$9*BI5-IF(BI5>$AQ$9,$AS$9/(6*$AW$9)*(BI5-$AQ$9)^3,0) -> 0 | BJ9: =$AV$9*BJ5-IF(BJ5>$AQ$9,$AS$9/(6*$AW$9)*(BJ5-$AQ$9)^3,0) -> 0 | BK9: 0 | BL9: 0 | BM9: 0 | BN9: 0 | BO9: 0 | BP9: 0 | BQ9: 0 | BR9: 0 | BS9: 0 | BT9: 0 | BU9: 0 | BV9: 0 | BW9: 0 | BX9: 0 | BY9: 0 | BZ9: 0 | CA9: 0 | CB9: 0 | CC9: 0 | CD9: 0 | CE9: 0 | CF9: 0 | CG9: 0 | CH9: 0 | CI9: 0 | CJ9: 0 | CK9: 0 | CL9: 0 | CM9: 0 | CN9: 0 | CO9: 0 | CP9: 0 | CQ9: 0 | CR9: 0 | CS9: 0 | CT9: 0 | CU9: 0 | CV9: 0 | CW9: 0 | CX9: 0 | CY9: 0 | CZ9: 0 | DA9: 0 | DB9: 0 | DC9: 0 | DD9: 0 | DE9: 0 | DF9: 0 | DG9: =DE9 -> 0 | DH9: =DD9 -> 0 | DI9: =DC9 -> 0 | DJ9: =DB9 -> 0 | DK9: =DA9 -> 0 | DL9: =CZ9 -> 0 | DM9: =CY9 -> 0 | DN9: =CX9 -> 0 | DO9: =CW9 -> 0 | DP9: =CV9 -> 0 | DQ9: =CU9 -> 0 | DR9: =CT9 -> 0 | DS9: =CS9 -> 0 | DT9: =CR9 -> 0 | DU9: =CQ9 -> 0 | DV9: =CP9 -> 0 | DW9: =CO9 -> 0 | DX9: =CN9 -> 0 | DY9: =CM9 -> 0 | DZ9: =CL9 -> 0 | EA9: =CK9 -> 0 | EB9: =CJ9 -> 0 | EC9: =CI9 -> 0 | ED9: =CH9 -> 0 | EE9: =CG9 -> 0 | EF9: =CF9 -> 0 | EG9: =CE9 -> 0 | EH9: =CD9 -> 0 | EI9: =CC9 -> 0 | EJ9: =CB9 -> 0 | EK9: =CA9 -> 0 | EL9: =BZ9 -> 0 | EM9: =BY9 -> 0 | EN9: =BX9 -> 0 | EO9: =BW9 -> 0 | EP9: =BV9 -> 0 | EQ9: =BU9 -> 0 | ER9: =BT9 -> 0 | ES9: =BS9 -> 0 | ET9: =BR9 -> 0 | EU9: =BQ9 -> 0 | EV9: =BP9 -> 0 | EW9: =BO9 -> 0 | EX9: =BN9 -> 0 | EY9: =BM9 -> 0 | EZ9: =BL9 -> 0 | FA9: =BK9 -> 0 | FB9: =BJ9 -> 0 | FC9: =BI9 -> 0 | FD9: =BH9 -> 0
C10: Design approach: | L10: Standard | Q10: =Q28 -> ...ADOPT: 140mm thk Wembley Innovation Wi Column | AD10: Wi Column | AF10: Doubled | AM10: ="Unfactored moment: load on "&IF(L9=AD9,"upper","left")&" panel" -> Unfactored moment: load on left panel | AN10: =IF($L$10=$AD$14,INDEX(AI31:AK31,1,MATCH(L14,AD17:AD19,0)),INDEX(AL31:AN31,1,MATCH(L14,AD17:AD19,0))) -> 2.083333333 | AP10: barrier PUDL | AQ10: 0 | AR10: =N17 -> 5 | AS10: =AT10+AU10 -> 0 | AT10: =AS35 -> 0 | AU10: =AS36 -> 0 | AV10: =AS10*$N$17/2 -> 0 | AX10: barrier PUDL | AY10: 0 | AZ10: =N25 -> 0 | BA10: =AY36+BB10+BC10 -> 0 | BB10: =IF($L$10=$AD$14,INDEX(AY37:BA37,1,MATCH(L14,AD17:AD19,0)),INDEX(BB37:BD37,1,MATCH(L14,AD17:AD19,0))) -> 0 | BC10: =IF($L$10=$AD$14,INDEX(AY38:BA38,1,MATCH(L15,AD17:AD19,0)),INDEX(BB38:BD38,1,MATCH(L15,AD17:AD19,0))) -> 0 | BD10: =0.5*AZ10*BA10-1/3*AZ10^2*BA10/N17 -> 0 | BE10: =1/3*AZ10^2*BA10/N17 -> 0 | BG10: barrier PUDL | BH10: 0 | BI10: =-$AV$10*BI5+$AS$10*BI5^2/2 -> 0 | BJ10: =-$AV$10*BJ5+$AS$10*BJ5^2/2 -> 0 | BK10: 0 | BL10: 0 | BM10: 0 | BN10: 0 | BO10: 0 | BP10: 0 | BQ10: 0 | BR10: 0 | BS10: 0 | BT10: 0 | BU10: 0 | BV10: 0 | BW10: 0 | BX10: 0 | BY10: 0 | BZ10: 0 | CA10: 0 | CB10: 0 | CC10: 0 | CD10: 0 | CE10: 0 | CF10: 0 | CG10: 0 | CH10: 0 | CI10: 0 | CJ10: 0 | CK10: 0 | CL10: 0 | CM10: 0 | CN10: 0 | CO10: 0 | CP10: 0 | CQ10: 0 | CR10: 0 | CS10: 0 | CT10: 0 | CU10: 0 | CV10: 0 | CW10: 0 | CX10: 0 | CY10: 0 | CZ10: 0 | DA10: 0 | DB10: 0 | DC10: 0 | DD10: 0 | DE10: 0 | DF10: 0 | DG10: =-$AV$10*DG5+$AS$10*DG5^2/2 -> 0 | DH10: 0 | DI10: 0 | DJ10: 0 | DK10: 0 | DL10: 0 | DM10: 0 | DN10: 0 | DO10: 0 | DP10: 0 | DQ10: 0 | DR10: 0 | DS10: 0 | DT10: 0 | DU10: 0 | DV10: 0 | DW10: 0 | DX10: 0 | DY10: 0 | DZ10: 0 | EA10: 0 | EB10: 0 | EC10: 0 | ED10: 0 | EE10: 0 | EF10: 0 | EG10: 0 | EH10: 0 | EI10: 0 | EJ10: 0 | EK10: 0 | EL10: 0 | EM10: 0 | EN10: 0 | EO10: 0 | EP10: 0 | EQ10: 0 | ER10: 0 | ES10: 0 | ET10: 0 | EU10: 0 | EV10: 0 | EW10: 0 | EX10: 0 | EY10: 0 | EZ10: 0 | FA10: 0 | FB10: 0 | FC10: 0 | FD10: 0
Q11: =IF(C20<>" "," ",IF(AND(L9=AD9,L10=AD13),"Conservative design approach for Wi Beams is the same as Standard.",IF(L9=AD10,IF(AND(Z26>AE22,C20=" ")," ",IF(AND(C20=" ",MATCH(Z26,AE22:AE25,-1)<$AG$13),"NOTE: Required Wi Column is wider than wall thickness."," ")),IF(AND(Z26>AE26,C20=" ")," ",IF(AND(C20=" ",MATCH(Z26,AE26:AE29,-1)<$AG$13),"NOTE: Required Wi Beam is wider than wall thickness."," "))))) ->  | AF11: =IF(L13=AF9,1,2) -> 1 | AM11: ="Unfactored moment: load on "&IF(L9=AD9,"lower","right")&" panel" -> Unfactored moment: load on right panel | AN11: =IF($L$10=$AD$14,INDEX(AI32:AK32,1,MATCH(L15,AD17:AD19,0)),INDEX(AL32:AN32,1,MATCH(L15,AD17:AD19,0))) -> 2.083333333 | AP11: barrier line load | AQ11: 0 | AR11: =N17 -> 5 | AS11: =AT11+AU11 -> 0 | AT11: =AS42 -> 0 | AU11: =AS43 -> 0 | AV11: =AS11*$N$17/2 -> 0 | AX11: barrier line load | AY11: =N25 -> 0 | BA11: =AY45+BB11+BC11 -> 0 | BB11: =IF($L$10=$AD$14,INDEX(AY46:BA46,1,MATCH(L14,AD17:AD19,0)),INDEX(BB46:BD46,1,MATCH(L14,AD17:AD19,0))) -> 0 | BC11: =IF($L$10=$AD$14,INDEX(AY47:BA47,1,MATCH(L15,AD17:AD19,0)),INDEX(BB47:BD47,1,MATCH(L15,AD17:AD19,0))) -> 0 | BD11: =BA11*($N$17-AY11)/$N$17 -> 0 | BE11: =BA11-BD11 -> 0 | BG11: barrier line load | BH11: 0 | BI11: =-$AV$11*BI5+$AS$11*BI5^2/2 -> 0 | BJ11: =-$AV$11*BJ5+$AS$11*BJ5^2/2 -> 0 | BK11: 0 | BL11: 0 | BM11: 0 | BN11: 0 | BO11: 0 | BP11: 0 | BQ11: 0 | BR11: 0 | BS11: 0 | BT11: 0 | BU11: 0 | BV11: 0 | BW11: 0 | BX11: 0 | BY11: 0 | BZ11: 0 | CA11: 0 | CB11: 0 | CC11: 0 | CD11: 0 | CE11: 0 | CF11: 0 | CG11: 0 | CH11: 0 | CI11: 0 | CJ11: 0 | CK11: 0 | CL11: 0 | CM11: 0 | CN11: 0 | CO11: 0 | CP11: 0 | CQ11: 0 | CR11: 0 | CS11: 0 | CT11: 0 | CU11: 0 | CV11: 0 | CW11: 0 | CX11: 0 | CY11: 0 | CZ11: 0 | DA11: 0 | DB11: 0 | DC11: 0 | DD11: 0 | DE11: 0 | DF11: 0 | DG11: =-$AV$11*DG5+$AS$11*DG5^2/2 -> 0 | DH11: 0 | DI11: 0 | DJ11: 0 | DK11: 0 | DL11: 0 | DM11: 0 | DN11: 0 | DO11: 0 | DP11: 0 | DQ11: 0 | DR11: 0 | DS11: 0 | DT11: 0 | DU11: 0 | DV11: 0 | DW11: 0 | DX11: 0 | DY11: 0 | DZ11: 0 | EA11: 0 | EB11: 0 | EC11: 0 | ED11: 0 | EE11: 0 | EF11: 0 | EG11: 0 | EH11: 0 | EI11: 0 | EJ11: 0 | EK11: 0 | EL11: 0 | EM11: 0 | EN11: 0 | EO11: 0 | EP11: 0 | EQ11: 0 | ER11: 0 | ES11: 0 | ET11: 0 | EU11: 0 | EV11: 0 | EW11: 0 | EX11: 0 | EY11: 0 | EZ11: 0 | FA11: 0 | FB11: 0 | FC11: 0 | FD11: 0
C12: ELEMENT ARRANGEMENT | Q12: DESIGNER'S NOTES | AD12: Design approach: | AF12: 100 | AG12: reverse selected: | AI12: SUPERSEDED: MAX BENDING MOMENT VALUES | AU12: sum: | AV12: =AV6+AV7-AV8-AV9+AV10+AV11 -> 2.725 | BC12: sum: | BD12: =BD6+BD7-BD8-BD9+BD10+BD11 -> 2.95 | BE12: =BE6+BE7-BE8-BE9+BE10+BE11 -> 2.95 | BG12: sum | BH12: =SUM(BH6:BH11) -> 0 | BI12: =SUM(BI6:BI11) -> -0.1361208333 | BJ12: -0.2719166667 | BK12: -0.4072875 | BL12: -0.5421333333 | BM12: -0.6763541667 | BN12: -0.80985 | BO12: -0.9425208333 | BP12: -1.074266667 | BQ12: -1.2049875 | BR12: -1.334583333 | BS12: -1.462954167 | BT12: -1.59 | BU12: -1.715620833 | BV12: -1.839716667 | BW12: -1.9621875 | BX12: -2.082933333 | BY12: -2.201854167 | BZ12: -2.31885 | CA12: -2.433820833 | CB12: -2.546666667 | CC12: -2.6572875 | CD12: -2.765583333 | CE12: -2.871454167 | CF12: -2.9748 | CG12: -3.075520833 | CH12: -3.173516667 | CI12: -3.2686875 | CJ12: -3.360933333 | CK12: -3.450154167 | CL12: -3.53625 | CM12: -3.619120833 | CN12: -3.698666667 | CO12: -3.7747875 | CP12: -3.847383333 | CQ12: -3.916354167 | CR12: -3.9816 | CS12: -4.043020833 | CT12: -4.100516667 | CU12: -4.1539875 | CV12: -4.203333333 | CW12: -4.248454167 | CX12: -4.28925 | CY12: -4.325620833 | CZ12: -4.357466667 | DA12: -4.3846875 | DB12: -4.407183333 | DC12: -4.424854167 | DD12: -4.4376 | DE12: -4.445320833 | DF12: -4.447916667 | DG12: =SUM(DG6:DG11) -> -4.445320833 | DH12: -4.4376 | DI12: -4.424854167 | DJ12: -4.407183333 | DK12: -4.3846875 | DL12: -4.357466667 | DM12: -4.325620833 | DN12: -4.28925 | DO12: -4.248454167 | DP12: -4.203333333 | DQ12: -4.1539875 | DR12: -4.100516667 | DS12: -4.043020833 | DT12: -3.9816 | DU12: -3.916354167 | DV12: -3.847383333 | DW12: -3.7747875 | DX12: -3.698666667 | DY12: -3.619120833 | DZ12: -3.53625 | EA12: -3.450154167 | EB12: -3.360933333 | EC12: -3.2686875 | ED12: -3.173516667 | EE12: -3.075520833 | EF12: -2.9748 | EG12: -2.871454167 | EH12: -2.765583333 | EI12: -2.6572875 | EJ12: -2.546666667 | EK12: -2.433820833 | EL12: -2.31885 | EM12: -2.201854167 | EN12: -2.082933333 | EO12: -1.9621875 | EP12: -1.839716667 | EQ12: -1.715620833 | ER12: -1.59 | ES12: -1.462954167 | ET12: -1.334583333 | EU12: -1.2049875 | EV12: -1.074266667 | EW12: -0.9425208333 | EX12: -0.80985 | EY12: -0.6763541667 | EZ12: -0.5421333333 | FA12: -0.4072875 | FB12: -0.2719166667 | FC12: -0.1361208333 | FD12: -2.442490654e-15
C13: =IF(L9=AD9,"Wi Beam height:","Wi Column width:") -> Wi Column width: | L13: Single | AD13: Conservative | AF13: 140 | AG13: =IF(N16=AF12,4,IF(N16=AF13,3,IF(N16=AF14,2,IF(N16=AF15,1,1)))) -> 3 | AI13: Column design | AL13: MAX BENDING MOMENT | AQ13: Load heights | AT13: Beam - triangular/rectangular | AY13: Load widths | BB13: Column - triangular/rectangular | BG13: max | BH13: =MIN(BH12:FD12) -> -4.447916667
C14: =IF(L9=AD9,"Upper section construction type:","Left side construction type:") -> Left side construction type: | L14: Standard | AD14: Standard | AF14: 190 | AI14: =$AD$14 -> Standard | AL14: =$AD$13 -> Conservative | AQ14: =$AD$14 -> Standard | AT14: =$AD$13 -> Conservative | AY14: =$AD$14 -> Standard | BB14: =$AD$13 -> Conservative | BG14: location | BH14: =MATCH(BH13,BH12:FD12,0) -> 51
C15: =IF(L9=AD9,"Lower section construction type:","Right side construction type:") -> Right side construction type: | L15: Standard | AF15: 215 | AH15: w/2 >=H/2 | AI15: =$AD$17 -> Free edge | AJ15: =$AD$18 -> Free edge load | AK15: =$AD$19 -> Standard | AL15: =$AD$17 -> Free edge | AM15: =$AD$18 -> Free edge load | AN15: =$AD$19 -> Standard | AQ15: =$AD$17 -> Free edge | AR15: =$AD$18 -> Free edge load | AS15: =$AD$19 -> Standard | AT15: =$AD$17 -> Free edge | AU15: =$AD$18 -> Free edge load | AV15: =$AD$19 -> Standard | AY15: =$AD$17 -> Free edge | AZ15: =$AD$18 -> Free edge load | BA15: =$AD$19 -> Standard | BB15: =$AD$17 -> Free edge | BC15: =$AD$18 -> Free edge load | BD15: =$AD$19 -> Standard
C16: Wall thickness 't' [mm] = | N16: 140 | AD16: Side construction type: | AG16: Mcol | AI16: =0.45*N17^2*N22/8 -> 0.5625 | AL16: =AI16 -> 0.5625 | AP16: beam | AQ16: =IF(L13=AF9,AU16,2*AU16) -> 0.225 | AT16: single beam height: | AU16: 0.225 | AX16: column | AY16: =IF(L13=AF9,BC16,2*BC16) -> 0.45 | BB16: single column width: | BC16: 0.45 | BG16: Column - bending moment (unfactored)
C17: =IF(L9=AD9,"Panel length 'L'","Panel height 'H'") -> Panel height 'H' | L17: [m] = | N17: 5 | AD17: Free edge | AG17: Mleft | AH17: =IF(AD52/2>=N17/2,1,0) -> 1 | AI17: 0 | AJ17: =N17^2*N22*AD52/2/8 -> 3.75 | AK17: =IF(AH17=1,N17^2/4*N22*N17/6,N17^2/4*N22*N17/6-((N17-AD52)^2)*N22/16*(N17-(N17-AD52)/3)) -> 2.083333333 | AL17: 0 | AM17: =AJ17 -> 3.75 | AN17: =IF(AH17=1,N17^2*N22*N17/2/8,N17^2*N22*AD52/2/8) -> 3.125 | AP17: top | AQ17: 0 | AR17: =AD52/2 -> 3 | AS17: =N17/2 -> 2.5 | AT17: 0 | AU17: =AR17 -> 3 | AV17: =AS17 -> 2.5 | AX17: left | AY17: 0 | AZ17: =AD52/2 -> 3 | BA17: =N17/2 -> 2.5 | BB17: 0 | BC17: =AZ17 -> 3 | BD17: =AZ17 -> 3 | BG17: x= | BH17: 0 | BI17: =$N$17/100 -> 0.05 | BJ17: =$N$17/100+BI17 -> 0.1 | BK17: =$N$17/100+BJ17 -> 0.15 | BL17: 0.2 | BM17: 0.25 | BN17: 0.3 | BO17: 0.35 | BP17: 0.4 | BQ17: 0.45 | BR17: 0.5 | BS17: 0.55 | BT17: 0.6 | BU17: 0.65 | BV17: 0.7 | BW17: 0.75 | BX17: 0.8 | BY17: 0.85 | BZ17: 0.9 | CA17: 0.95 | CB17: 1 | CC17: 1.05 | CD17: 1.1 | CE17: 1.15 | CF17: 1.2 | CG17: 1.25 | CH17: 1.3 | CI17: 1.35 | CJ17: 1.4 | CK17: 1.45 | CL17: 1.5 | CM17: 1.55 | CN17: 1.6 | CO17: 1.65 | CP17: 1.7 | CQ17: 1.75 | CR17: 1.8 | CS17: 1.85 | CT17: 1.9 | CU17: 1.95 | CV17: 2 | CW17: 2.05 | CX17: 2.1 | CY17: 2.15 | CZ17: 2.2 | DA17: 2.25 | DB17: 2.3 | DC17: 2.35 | DD17: 2.4 | DE17: 2.45 | DF17: 2.5 | DG17: 2.55 | DH17: 2.6 | DI17: 2.65 | DJ17: 2.7 | DK17: 2.75 | DL17: 2.8 | DM17: 2.85 | DN17: 2.9 | DO17: 2.95 | DP17: 3 | DQ17: 3.05 | DR17: 3.1 | DS17: 3.15 | DT17: 3.2 | DU17: 3.25 | DV17: 3.3 | DW17: =$N$17/100+DV17 -> 3.35 | DX17: 3.4 | DY17: 3.45 | DZ17: 3.5 | EA17: 3.55 | EB17: 3.6 | EC17: 3.65 | ED17: 3.7 | EE17: 3.75 | EF17: 3.8 | EG17: 3.85 | EH17: 3.9 | EI17: 3.95 | EJ17: 4 | EK17: 4.05 | EL17: 4.1 | EM17: 4.15 | EN17: 4.2 | EO17: 4.25 | EP17: 4.3 | EQ17: 4.35 | ER17: 4.4 | ES17: 4.45 | ET17: 4.5 | EU17: 4.55 | EV17: 4.6 | EW17: 4.65 | EX17: 4.7 | EY17: 4.75 | EZ17: 4.8 | FA17: 4.85 | FB17: 4.9 | FC17: 4.95 | FD17: 5
C18: =IF(L9=AD9,"Distance to top support's face","Distance to left column's face") -> Distance to left column's face | K18: 'w1' [m] = | N18: 6 | AD18: Free edge load | AG18: Mright | AH18: =IF(AD53/2>=N17/2,1,0) -> 1 | AI18: 0 | AJ18: =N17^2*N22*AD53/2/8 -> 3.75 | AK18: =IF(AH18=1,N17^2/4*N22*N17/6,N17^2/4*N22*N17/6-((N17-AD53)^2)*N22/16*(N17-(N17-AD53)/3)) -> 2.083333333 | AL18: 0 | AM18: =AJ18 -> 3.75 | AN18: =IF(AH18=1,AN17,N17^2*N22*AD53/2/8) -> 3.125 | AP18: bottom | AQ18: 0 | AR18: =AD53/2 -> 3 | AS18: =N17/2 -> 2.5 | AT18: 0 | AU18: =AR18 -> 3 | AV18: =AS18 -> 2.5 | AX18: right | AY18: 0 | AZ18: =AD53/2 -> 3 | BA18: =N17/2 -> 2.5 | BB18: 0 | BC18: =AZ18 -> 3 | BD18: =AZ18 -> 3 | BG18: rectangular | BH18: 0 | BI18: =-$BD$6*BI17+$BA$6*BI17^2/2 -> -0.022275 | BJ18: =-$BD$6*BJ17+$BA$6*BJ17^2/2 -> -0.0441 | BK18: -0.065475 | BL18: -0.0864 | BM18: -0.106875 | BN18: -0.1269 | BO18: -0.146475 | BP18: -0.1656 | BQ18: -0.184275 | BR18: -0.2025 | BS18: -0.220275 | BT18: -0.2376 | BU18: -0.254475 | BV18: -0.2709 | BW18: -0.286875 | BX18: -0.3024 | BY18: -0.317475 | BZ18: -0.3321 | CA18: -0.346275 | CB18: -0.36 | CC18: -0.373275 | CD18: -0.3861 | CE18: -0.398475 | CF18: -0.4104 | CG18: -0.421875 | CH18: -0.4329 | CI18: -0.443475 | CJ18: -0.4536 | CK18: -0.463275 | CL18: -0.4725 | CM18: -0.481275 | CN18: -0.4896 | CO18: -0.497475 | CP18: -0.5049 | CQ18: -0.511875 | CR18: -0.5184 | CS18: -0.524475 | CT18: -0.5301 | CU18: -0.535275 | CV18: -0.54 | CW18: -0.544275 | CX18: -0.5481 | CY18: -0.551475 | CZ18: -0.5544 | DA18: -0.556875 | DB18: -0.5589 | DC18: -0.560475 | DD18: -0.5616 | DE18: -0.562275 | DF18: -0.5625 | DG18: -0.562275 | DH18: -0.5616 | DI18: -0.560475 | DJ18: -0.5589 | DK18: -0.556875 | DL18: -0.5544 | DM18: -0.551475 | DN18: -0.5481 | DO18: -0.544275 | DP18: -0.54 | DQ18: -0.535275 | DR18: -0.5301 | DS18: -0.524475 | DT18: -0.5184 | DU18: -0.511875 | DV18: =-$BD$6*DV17+$BA$6*DV17^2/2 -> -0.5049 | DW18: -0.497475 | DX18: -0.4896 | DY18: -0.481275 | DZ18: -0.4725 | EA18: -0.463275 | EB18: -0.4536 | EC18: -0.443475 | ED18: -0.4329 | EE18: -0.421875 | EF18: -0.4104 | EG18: -0.398475 | EH18: -0.3861 | EI18: -0.373275 | EJ18: -0.36 | EK18: -0.346275 | EL18: -0.3321 | EM18: -0.317475 | EN18: -0.3024 | EO18: -0.286875 | EP18: -0.2709 | EQ18: -0.254475 | ER18: -0.2376 | ES18: -0.220275 | ET18: -0.2025 | EU18: -0.184275 | EV18: -0.1656 | EW18: -0.146475 | EX18: -0.1269 | EY18: -0.106875 | EZ18: -0.0864 | FA18: -0.065475 | FB18: -0.0441 | FC18: -0.022275 | FD18: -4.884981308e-15
C19: =IF(L9=AD9,"Distance to bottom support's face","Distance to right column's face") -> Distance to right column's face | K19: 'w2' [m] = | N19: 6 | AD19: Standard | AQ19: Applied loads | AY19: Applied loads | BG19: triangle | BH19: 0 | BI19: =-$BD$7*BI17+$BA$7*BI17^3/3/$AZ$7 -> -0.1249833333 | BJ19: =-$BD$7*BJ17+$BA$7*BJ17^3/3/$AZ$7 -> -0.2498666667 | BK19: -0.37455 | BL19: -0.4989333333 | BM19: -0.6229166667 | BN19: -0.7464 | BO19: -0.8692833333 | BP19: -0.9914666667 | BQ19: -1.11285 | BR19: -1.233333333 | BS19: -1.352816667 | BT19: -1.4712 | BU19: -1.588383333 | BV19: -1.704266667 | BW19: -1.81875 | BX19: -1.931733333 | BY19: -2.043116667 | BZ19: -2.1528 | CA19: -2.260683333 | CB19: -2.366666667 | CC19: -2.47065 | CD19: -2.572533333 | CE19: -2.672216667 | CF19: -2.7696 | CG19: -2.864583333 | CH19: -2.957066667 | CI19: -3.04695 | CJ19: -3.134133333 | CK19: -3.218516667 | CL19: -3.3 | CM19: -3.378483333 | CN19: -3.453866667 | CO19: -3.52605 | CP19: -3.594933333 | CQ19: -3.660416667 | CR19: -3.7224 | CS19: -3.780783333 | CT19: -3.835466667 | CU19: -3.88635 | CV19: -3.933333333 | CW19: -3.976316667 | CX19: -4.0152 | CY19: -4.049883333 | CZ19: -4.080266667 | DA19: -4.10625 | DB19: -4.127733333 | DC19: -4.144616667 | DD19: -4.1568 | DE19: -4.164183333 | DF19: -4.166666667 | DG19: =DE19 -> -4.164183333 | DH19: =DD19 -> -4.1568 | DI19: =DC19 -> -4.144616667 | DJ19: =DB19 -> -4.127733333 | DK19: =DA19 -> -4.10625 | DL19: =CZ19 -> -4.080266667 | DM19: =CY19 -> -4.049883333 | DN19: =CX19 -> -4.0152 | DO19: =CW19 -> -3.976316667 | DP19: =CV19 -> -3.933333333 | DQ19: =CU19 -> -3.88635 | DR19: =CT19 -> -3.835466667 | DS19: =CS19 -> -3.780783333 | DT19: =CR19 -> -3.7224 | DU19: =CQ19 -> -3.660416667 | DV19: =CP19 -> -3.594933333 | DW19: =CO19 -> -3.52605 | DX19: =CN19 -> -3.453866667 | DY19: =CM19 -> -3.378483333 | DZ19: =CL19 -> -3.3 | EA19: =CK19 -> -3.218516667 | EB19: =CJ19 -> -3.134133333 | EC19: =CI19 -> -3.04695 | ED19: =CH19 -> -2.957066667 | EE19: =CG19 -> -2.864583333 | EF19: =CF19 -> -2.7696 | EG19: =CE19 -> -2.672216667 | EH19: =CD19 -> -2.572533333 | EI19: =CC19 -> -2.47065 | EJ19: =CB19 -> -2.366666667 | EK19: =CA19 -> -2.260683333 | EL19: =BZ19 -> -2.1528 | EM19: =BY19 -> -2.043116667 | EN19: =BX19 -> -1.931733333 | EO19: =BW19 -> -1.81875 | EP19: =BV19 -> -1.704266667 | EQ19: =BU19 -> -1.588383333 | ER19: =BT19 -> -1.4712 | ES19: =BS19 -> -1.352816667 | ET19: =BR19 -> -1.233333333 | EU19: =BQ19 -> -1.11285 | EV19: =BP19 -> -0.9914666667 | EW19: =BO19 -> -0.8692833333 | EX19: =BN19 -> -0.7464 | EY19: =BM19 -> -0.6229166667 | EZ19: =BL19 -> -0.4989333333 | FA19: =BK19 -> -0.37455 | FB19: =BJ19 -> -0.2498666667 | FC19: =BI19 -> -0.1249833333 | FD19: =BH19 -> 0
C20: =IF(AND(L9=AD9,L14<>AD19,L15<>AD19),"Construction for at least one section must be 'Standard'.",IF(AND(L9=AD9,N25>AD52+AD53+AQ16),"Barrier height cannot be more than total wall height.",IF(AND(L9=AD9,L15=AD18),"Free edge load for the lower section is not supported.",IF(AND(L9=AD9,N16=215)," ",IF(AND(L9=AD10,N16>100,N17>7),"Wi Column height cannot be more than 7m.",IF(AND(L9=AD10,N16=100,N17>5),"100mm Wi Column height cannot be more than 5m.",IF(AND(L9=AD9,N16>100,N17>12),"Wi Beam length cannot be more than 12m.",IF(AND(L9=AD9,N16=100,N17>7.5),"100mm Wi Beam length cannot be more than 7.5m"," ")))))))) ->  | AI20: Beam design | AL20: MAX BENDING MOMENT | AP20: beam | AQ20: =AQ16*$N$22 -> 0.09 | AX20: column | AY20: =AY16*$N$22 -> 0.18 | BG20: left negative triangle | BH20: 0 | BI20: =$BD$8*BI17-IF(BI17>$AY$8,$BA$8/(6*$BF$8)*(BI17-$AY$8)^3,0) -> 0 | BJ20: 0 | BK20: 0 | BL20: 0 | BM20: 0 | BN20: 0 | BO20: 0 | BP20: 0 | BQ20: 0 | BR20: 0 | BS20: 0 | BT20: 0 | BU20: 0 | BV20: 0 | BW20: 0 | BX20: 0 | BY20: 0 | BZ20: 0 | CA20: 0 | CB20: 0 | CC20: 0 | CD20: 0 | CE20: 0 | CF20: 0 | CG20: 0 | CH20: 0 | CI20: 0 | CJ20: 0 | CK20: 0 | CL20: 0 | CM20: 0 | CN20: 0 | CO20: =$BD$8*CO17-IF(CO17>$AY$8,$BA$8/(6*$BF$8)*(CO17-$AY$8)^3,0) -> 0 | CP20: 0 | CQ20: 0 | CR20: 0 | CS20: 0 | CT20: 0 | CU20: 0 | CV20: 0 | CW20: 0 | CX20: 0 | CY20: 0 | CZ20: 0 | DA20: 0 | DB20: 0 | DC20: 0 | DD20: 0 | DE20: 0 | DF20: 0 | DG20: =DE20 -> 0 | DH20: =DD20 -> 0 | DI20: =DC20 -> 0 | DJ20: =DB20 -> 0 | DK20: =DA20 -> 0 | DL20: =CZ20 -> 0 | DM20: =CY20 -> 0 | DN20: =CX20 -> 0 | DO20: =CW20 -> 0 | DP20: =CV20 -> 0 | DQ20: =CU20 -> 0 | DR20: =CT20 -> 0 | DS20: =CS20 -> 0 | DT20: =CR20 -> 0 | DU20: =CQ20 -> 0 | DV20: =CP20 -> 0 | DW20: =CO20 -> 0 | DX20: =CN20 -> 0 | DY20: =CM20 -> 0 | DZ20: =CL20 -> 0 | EA20: =CK20 -> 0 | EB20: =CJ20 -> 0 | EC20: =CI20 -> 0 | ED20: =CH20 -> 0 | EE20: =CG20 -> 0 | EF20: =CF20 -> 0 | EG20: =CE20 -> 0 | EH20: =CD20 -> 0 | EI20: =CC20 -> 0 | EJ20: =CB20 -> 0 | EK20: =CA20 -> 0 | EL20: =BZ20 -> 0 | EM20: =BY20 -> 0 | EN20: =BX20 -> 0 | EO20: =BW20 -> 0 | EP20: =BV20 -> 0 | EQ20: =BU20 -> 0 | ER20: =BT20 -> 0 | ES20: =BS20 -> 0 | ET20: =BR20 -> 0 | EU20: =BQ20 -> 0 | EV20: =BP20 -> 0 | EW20: =BO20 -> 0 | EX20: =BN20 -> 0 | EY20: =BM20 -> 0 | EZ20: =BL20 -> 0 | FA20: =BK20 -> 0 | FB20: =BJ20 -> 0 | FC20: =BI20 -> 0 | FD20: =BH20 -> 0
C21: UNFACTORED LOADING | Q21: CALCULATIONS | AD21: Element types (red WiC, blue WiB): | AF21: single values | AI21: =$AD$14 -> Standard | AL21: =$AD$13 -> Conservative | AP21: top | AQ21: 0 | AR21: =AR17*$N$22 -> 1.2 | AS21: =AS17*$N$22 -> 1 | AT21: 0 | AU21: =AU17*$N$22 -> 1.2 | AV21: =AS21 -> 1 | AX21: left | AY21: 0 | AZ21: =AZ17*$N$22 -> 1.2 | BA21: 1 | BB21: 0 | BC21: 1.2 | BD21: 1.2 | BG21: right negative triangle | BH21: 0 | BI21: =$BD$9*BI17-IF(BI17>$AY$9,$BA$9/(6*$BF$9)*(BI17-$AY$9)^3,0) -> 0 | BJ21: 0 | BK21: 0 | BL21: 0 | BM21: 0 | BN21: 0 | BO21: 0 | BP21: 0 | BQ21: 0 | BR21: 0 | BS21: 0 | BT21: 0 | BU21: 0 | BV21: 0 | BW21: 0 | BX21: 0 | BY21: 0 | BZ21: 0 | CA21: 0 | CB21: 0 | CC21: 0 | CD21: 0 | CE21: 0 | CF21: 0 | CG21: 0 | CH21: 0 | CI21: 0 | CJ21: 0 | CK21: 0 | CL21: 0 | CM21: 0 | CN21: 0 | CO21: =$BD$9*CO17-IF(CO17>$AY$9,$BA$9/(6*$BF$9)*(CO17-$AY$9)^3,0) -> 0 | CP21: 0 | CQ21: 0 | CR21: 0 | CS21: 0 | CT21: 0 | CU21: 0 | CV21: 0 | CW21: 0 | CX21: 0 | CY21: 0 | CZ21: 0 | DA21: 0 | DB21: 0 | DC21: 0 | DD21: 0 | DE21: 0 | DF21: 0 | DG21: =DE21 -> 0 | DH21: =DD21 -> 0 | DI21: =DC21 -> 0 | DJ21: =DB21 -> 0 | DK21: =DA21 -> 0 | DL21: =CZ21 -> 0 | DM21: =CY21 -> 0 | DN21: =CX21 -> 0 | DO21: =CW21 -> 0 | DP21: =CV21 -> 0 | DQ21: =CU21 -> 0 | DR21: =CT21 -> 0 | DS21: =CS21 -> 0 | DT21: =CR21 -> 0 | DU21: =CQ21 -> 0 | DV21: =CP21 -> 0 | DW21: =CO21 -> 0 | DX21: =CN21 -> 0 | DY21: =CM21 -> 0 | DZ21: =CL21 -> 0 | EA21: =CK21 -> 0 | EB21: =CJ21 -> 0 | EC21: =CI21 -> 0 | ED21: =CH21 -> 0 | EE21: =CG21 -> 0 | EF21: =CF21 -> 0 | EG21: =CE21 -> 0 | EH21: =CD21 -> 0 | EI21: =CC21 -> 0 | EJ21: =CB21 -> 0 | EK21: =CA21 -> 0 | EL21: =BZ21 -> 0 | EM21: =BY21 -> 0 | EN21: =BX21 -> 0 | EO21: =BW21 -> 0 | EP21: =BV21 -> 0 | EQ21: =BU21 -> 0 | ER21: =BT21 -> 0 | ES21: =BS21 -> 0 | ET21: =BR21 -> 0 | EU21: =BQ21 -> 0 | EV21: =BP21 -> 0 | EW21: =BO21 -> 0 | EX21: =BN21 -> 0 | EY21: =BM21 -> 0 | EZ21: =BL21 -> 0 | FA21: =BK21 -> 0 | FB21: =BJ21 -> 0 | FC21: =BI21 -> 0 | FD21: =BH21 -> 0
C22: Lateral wind load 'Wk' [kN/m2] = | N22: 0.4 | Q22: =IF($L$9=$AD$9,"Unfactored reaction left / right 'R'","Unfactored reaction btm / top 'R'") -> Unfactored reaction btm / top 'R' | X22: [kN] = | Y22: =IF($L$9=$AD$9,FIXED(AV12,2)&" / "&FIXED(AV12,2),FIXED(BD12,2)&" / "&FIXED(BE12,2)) -> 2.95 / 2.95 | AD22: 215mm thk Wembley Innovation Wi Column | AE22: =$AF$11*AF22 -> 30 | AF22: =FIXED(30*2/$N$28,2) -> 30.00 | AI22: =$AD$17 -> Free edge | AJ22: =$AD$18 -> Free edge load | AK22: =$AD$19 -> Standard | AL22: =$AD$17 -> Free edge | AM22: =$AD$18 -> Free edge load | AN22: =$AD$19 -> Standard | AP22: bottom | AQ22: 0 | AR22: =AR18*$N$22 -> 1.2 | AS22: =AS18*$N$22 -> 1 | AT22: 0 | AU22: =AU18*$N$22 -> 1.2 | AV22: =AS22 -> 1 | AX22: right | AY22: 0 | AZ22: 1.2 | BA22: 1 | BB22: 0 | BC22: 1.2 | BD22: 1.2 | BG22: barrier PUDL | BH22: 0 | BI22: =IF(BI17<=$AZ$10,-$BD$10*BI17+1/6*$BA$10*BI17^3/$AZ$10,-$BD$10*BI17+1/2*$AZ$10*$BA$10*(BI17-2/3*$AZ$10)) -> 0 | BJ22: =IF(BJ17<=$AZ$10,-$BD$10*BJ17+1/6*$BA$10*BJ17^3/$AZ$10,-$BD$10*BJ17+1/2*$AZ$10*$BA$10*(BJ17-2/3*$AZ$10)) -> 0 | BK22: 0 | BL22: 0 | BM22: 0 | BN22: 0 | BO22: 0 | BP22: 0 | BQ22: 0 | BR22: 0 | BS22: 0 | BT22: 0 | BU22: 0 | BV22: 0 | BW22: 0 | BX22: 0 | BY22: 0 | BZ22: 0 | CA22: 0 | CB22: 0 | CC22: 0 | CD22: 0 | CE22: 0 | CF22: 0 | CG22: 0 | CH22: 0 | CI22: 0 | CJ22: 0 | CK22: 0 | CL22: 0 | CM22: 0 | CN22: 0 | CO22: 0 | CP22: 0 | CQ22: 0 | CR22: 0 | CS22: 0 | CT22: 0 | CU22: 0 | CV22: 0 | CW22: 0 | CX22: 0 | CY22: 0 | CZ22: 0 | DA22: 0 | DB22: 0 | DC22: 0 | DD22: 0 | DE22: 0 | DF22: 0 | DG22: 0 | DH22: 0 | DI22: 0 | DJ22: 0 | DK22: 0 | DL22: 0 | DM22: 0 | DN22: 0 | DO22: 0 | DP22: 0 | DQ22: 0 | DR22: 0 | DS22: 0 | DT22: 0 | DU22: 0 | DV22: =IF(DV17<=$AZ$10,-$BD$10*DV17+1/6*$BA$10*DV17^3/$AZ$10,-$BD$10*DV17+1/2*$AZ$10*$BA$10*(DV17-2/3*$AZ$10)) -> 0 | DW22: 0 | DX22: 0 | DY22: 0 | DZ22: 0 | EA22: 0 | EB22: 0 | EC22: 0 | ED22: 0 | EE22: 0 | EF22: 0 | EG22: 0 | EH22: 0 | EI22: 0 | EJ22: 0 | EK22: 0 | EL22: 0 | EM22: 0 | EN22: 0 | EO22: 0 | EP22: 0 | EQ22: 0 | ER22: 0 | ES22: 0 | ET22: 0 | EU22: 0 | EV22: 0 | EW22: 0 | EX22: 0 | EY22: 0 | EZ22: 0 | FA22: 0 | FB22: 0 | FC22: 0 | FD22: 0
C23: Barrier distributed load 'Wb_UDL' [kN/m2] = | N23: 0 | Q23: Unfactored moment: wind load [kNm] = | Z23: =IF(L9=AD9,ABS(INDEX(BH6:FD11,1,BH14)+INDEX(BH6:FD11,2,BH14)+INDEX(BH6:FD11,3,BH14)+INDEX(BH6:FD11,4,BH14)),ABS(INDEX(BH18:FD23,1,BH26)+INDEX(BH18:FD23,2,BH26)+INDEX(BH18:FD23,3,BH26)+INDEX(BH18:FD23,4,BH26))) -> 4.729166667 | AD23: 190mm thk Wembley Innovation Wi Column | AE23: =$AF$11*AF23 -> 26 | AF23: =FIXED(26*2/$N$28,2) -> 26.00 | AG23: Mbeam | AI23: =0.225*N17^2*N22/8 -> 0.28125 | AL23: =AI23 -> 0.28125 | BG23: barrier line load | BH23: 0 | BI23: =-$BD$11*BI17+IF(BI17>$AY$11,$BA$11*(BI17-$AY$11),0) -> 0 | BJ23: =-$BD$11*BJ17+IF(BJ17>$AY$11,$BA$11*(BJ17-$AY$11),0) -> 0 | BK23: 0 | BL23: 0 | BM23: 0 | BN23: 0 | BO23: 0 | BP23: 0 | BQ23: 0 | BR23: 0 | BS23: 0 | BT23: 0 | BU23: 0 | BV23: 0 | BW23: 0 | BX23: 0 | BY23: 0 | BZ23: 0 | CA23: 0 | CB23: 0 | CC23: 0 | CD23: 0 | CE23: 0 | CF23: 0 | CG23: 0 | CH23: 0 | CI23: 0 | CJ23: 0 | CK23: 0 | CL23: 0 | CM23: 0 | CN23: 0 | CO23: 0 | CP23: 0 | CQ23: 0 | CR23: 0 | CS23: 0 | CT23: 0 | CU23: 0 | CV23: 0 | CW23: 0 | CX23: 0 | CY23: 0 | CZ23: 0 | DA23: 0 | DB23: 0 | DC23: 0 | DD23: 0 | DE23: 0 | DF23: 0 | DG23: =-$BD$11*DG17+IF(DG17>$AY$11,$BA$11*(DG17-$AY$11),0) -> 0 | DH23: 0 | DI23: 0 | DJ23: 0 | DK23: 0 | DL23: 0 | DM23: 0 | DN23: 0 | DO23: 0 | DP23: 0 | DQ23: 0 | DR23: 0 | DS23: 0 | DT23: 0 | DU23: 0 | DV23: 0 | DW23: 0 | DX23: 0 | DY23: 0 | DZ23: 0 | EA23: 0 | EB23: 0 | EC23: 0 | ED23: 0 | EE23: 0 | EF23: 0 | EG23: 0 | EH23: 0 | EI23: 0 | EJ23: 0 | EK23: 0 | EL23: 0 | EM23: 0 | EN23: 0 | EO23: 0 | EP23: 0 | EQ23: 0 | ER23: 0 | ES23: 0 | ET23: 0 | EU23: 0 | EV23: 0 | EW23: 0 | EX23: 0 | EY23: 0 | EZ23: 0 | FA23: 0 | FB23: 0 | FC23: 0 | FD23: 0
C24: Barrier line load 'Wb_line' [kN/m] = | N24: 0 | Q24: Unfactored moment: barrier distributed [kNm] = | Z24: =IF(L9=AD9,ABS(INDEX(BH6:FD11,5,BH14)),ABS(INDEX(BH18:FD23,5,BH26))) -> 0 | AD24: 140mm thk Wembley Innovation Wi Column | AE24: 18 | AF24: =FIXED(18*2/$N$28,2) -> 18.00 | AG24: Mupper | AH24: =AH17 -> 1 | AI24: 0 | AJ24: 0 | AK24: =AK17 -> 2.083333333 | AL24: 0 | AM24: 0 | AN24: =AK24 -> 2.083333333 | AQ24: Load heights | AT24: Beam - small triangle | AY24: Load widths | BB24: Column - small triangle | BG24: sum | BH24: =SUM(BH18:BH23) -> 0 | BI24: =SUM(BI18:BI23) -> -0.1472583333 | BJ24: =SUM(BJ18:BJ23) -> -0.2939666667 | BK24: -0.440025 | BL24: -0.5853333333 | BM24: -0.7297916667 | BN24: -0.8733 | BO24: -1.015758333 | BP24: -1.157066667 | BQ24: -1.297125 | BR24: -1.435833333 | BS24: -1.573091667 | BT24: -1.7088 | BU24: -1.842858333 | BV24: -1.975166667 | BW24: -2.105625 | BX24: -2.234133333 | BY24: -2.360591667 | BZ24: -2.4849 | CA24: -2.606958333 | CB24: -2.726666667 | CC24: -2.843925 | CD24: -2.958633333 | CE24: -3.070691667 | CF24: -3.18 | CG24: -3.286458333 | CH24: -3.389966667 | CI24: -3.490425 | CJ24: -3.587733333 | CK24: -3.681791667 | CL24: -3.7725 | CM24: -3.859758333 | CN24: -3.943466667 | CO24: -4.023525 | CP24: -4.099833333 | CQ24: -4.172291667 | CR24: -4.2408 | CS24: -4.305258333 | CT24: -4.365566667 | CU24: -4.421625 | CV24: -4.473333333 | CW24: -4.520591667 | CX24: -4.5633 | CY24: -4.601358333 | CZ24: -4.634666667 | DA24: -4.663125 | DB24: -4.686633333 | DC24: -4.705091667 | DD24: -4.7184 | DE24: -4.726458333 | DF24: -4.729166667 | DG24: =SUM(DG18:DG23) -> -4.726458333 | DH24: -4.7184 | DI24: -4.705091667 | DJ24: -4.686633333 | DK24: -4.663125 | DL24: -4.634666667 | DM24: -4.601358333 | DN24: -4.5633 | DO24: -4.520591667 | DP24: -4.473333333 | DQ24: -4.421625 | DR24: -4.365566667 | DS24: -4.305258333 | DT24: -4.2408 | DU24: -4.172291667 | DV24: -4.099833333 | DW24: -4.023525 | DX24: -3.943466667 | DY24: -3.859758333 | DZ24: -3.7725 | EA24: -3.681791667 | EB24: -3.587733333 | EC24: -3.490425 | ED24: -3.389966667 | EE24: -3.286458333 | EF24: -3.18 | EG24: -3.070691667 | EH24: -2.958633333 | EI24: -2.843925 | EJ24: -2.726666667 | EK24: -2.606958333 | EL24: -2.4849 | EM24: -2.360591667 | EN24: -2.234133333 | EO24: -2.105625 | EP24: -1.975166667 | EQ24: -1.842858333 | ER24: -1.7088 | ES24: -1.573091667 | ET24: -1.435833333 | EU24: -1.297125 | EV24: -1.157066667 | EW24: -1.015758333 | EX24: -0.8733 | EY24: -0.7297916667 | EZ24: -0.5853333333 | FA24: -0.440025 | FB24: -0.2939666667 | FC24: -0.1472583333 | FD24: -4.884981308e-15
C25: Barrier height 'hb' [m] = | N25: 0 | Q25: Unfactored moment: barrier line load [kNm] = | Z25: =IF(L9=AD9,ABS(INDEX(BH6:FD11,6,BH14)),ABS(INDEX(BH18:FD23,6,BH26))) -> 0 | AD25: 100mm thk Wembley Innovation Wi Column | AE25: 12 | AF25: =FIXED(12*2/$N$28,2) -> 12.00 | AG25: Mlower | AH25: =AH18 -> 1 | AI25: 0 | AJ25: 0 | AK25: 2.083333333 | AL25: 0 | AM25: 0 | AN25: =AK25 -> 2.083333333 | AP25: top | AS25: =IF(AH17=1,0,N17/2-AD52/2) -> 0 | AX25: left | BA25: =IF(AH17=1,0,N17/2-AD52/2) -> 0 | BG25: max | BH25: =MIN(BH24:FD24) -> -4.729166667
C26: Partial load factor for wind load 'γf' = | N26: 1.5 | Q26: Total applied factored moment 'MEd' [kNm] = | Z26: =Z23*N26+Z24*N27+Z25*N27 -> 7.09375 | AD26: 215mm thk Wembley Innovation Wi Beam | AE26: =$AF$11*AF26 -> 40 | AF26: =FIXED(40*2/$N$28,2) -> 40.00 | AP26: bottom | AS26: =IF(AH18=1,0,N17/2-AD53/2) -> 0 | AX26: right | BA26: =IF(AH18=1,0,N17/2-AD53/2) -> 0 | BG26: location | BH26: =MATCH(BH25,BH24:FD24,0) -> 51
C27: Partial load factor for barrier load 'γf' = | N27: 1.5 | Q27: Moment of resistance 'MRd' [kNm] = | Z27: =IF(C20<>" ","ERROR",IF(L9=AD10,IF(Z26>AE22,"ERROR",INDEX(AE22:AE25,MIN(AG13,MATCH(Z26,AE22:AE25,-1)))),IF(Z26>AE26,"ERROR",INDEX(AE26:AE29,MIN(AG13,MATCH(Z26,AE26:AE29,-1)))))) -> 18 | AD27: 190mm thk Wembley Innovation Wi Beam | AE27: =$AF$11*AF27 -> 40 | AF27: =FIXED(40*2/$N$28,2) -> 40.00 | AI27: Final Design | AL27: MAX BENDING MOMENT | AQ27: Applied loads | AY27: Applied loads
C28: Partial material factor 'γM' = | N28: 2 | Q28: =IF(AND(N16<>AF12,L9=AD10,N17>7),"Wi Column height cannot be more than 7m.",(IF(AND(L9=AD10,N17>5,N16=AF12),"100mm Wi Column height cannot be more than 5m.",IF(AND(N16<>AF12,L9=AD9,N17>12),"Wi Beam length cannot be more than 12m.",(IF(AND(N16=AF12,L9=AD9,N17>7.5),"100mm Wi Beam length cannot be more than 7.5m.",IF(L9=AD10,IF(Z26>AE22,"Applied load is too high. Wi Column not suitable.","...ADOPT: "&IF($AF$11=1,"","2x")&AD31),IF(Z26>AE27,"Applied load is too high. Wi Beam not suitable.","...ADOPT: "&IF($AF$11=1,"","2x")&AD31)))))))) -> ...ADOPT: 140mm thk Wembley Innovation Wi Column | AD28: 140mm thk Wembley Innovation Wi Beam | AE28: =$AF$11*AF28 -> 30 | AF28: =FIXED(30*2/$N$28,2) -> 30.00 | AI28: =$AD$14 -> Standard | AL28: =$AD$13 -> Conservative | AP28: top | AS28: =AS25*$N$22 -> 0 | AX28: left | BA28: =BA25*$N$22 -> 0
C29: =IF(AND($N$28<>$AD$45,$N$28<>$AD$46),"Note: non-standard partial material factor used.","") ->  | AD29: 100mm thk Wembley Innovation Wi Beam | AE29: 15 | AF29: =FIXED(15*2/$N$28,2) -> 15.00 | AI29: =$AD$17 -> Free edge | AJ29: =$AD$18 -> Free edge load | AK29: =$AD$19 -> Standard | AL29: =$AD$17 -> Free edge | AM29: =$AD$18 -> Free edge load | AN29: =$AD$19 -> Standard | AP29: bottom | AS29: =AS26*$N$22 -> 0 | AX29: right | BA29: =BA26*$N$22 -> 0
AD30: Calculated element type: | AG30: =IF($L$9=$AD$10,AG16,AG23) -> Mcol | AI30: =IF($L$9=$AD$10,AI16,AI23) -> 0.5625 | AL30: 0.5625
C31: DIAGRAM | AD31: =IF(AND(L9=AD10,C20=" "),INDEX(AD22:AD25,MIN(AG13,MATCH(Z26,AE22:AE25,-1))),IF(AND(L9=AD9,C20=" "),INDEX(AD26:AD29,MIN(AG13,MATCH(Z26,AE26:AE29,-1)))," ")) -> 140mm thk Wembley Innovation Wi Column | AG31: =IF($L$9=$AD$10,AG17,AG24) -> Mleft | AH31: =AH24 -> 1 | AI31: =IF($L$9=$AD$10,AI17,AI24) -> 0 | AJ31: 3.75 | AK31: 2.083333333 | AL31: 0 | AM31: 3.75 | AN31: 3.125 | AQ31: Load heights | AT31: Beam - barrier PUDL | AY31: Load widths | BB31: Column - barrier PUDL
AG32: =IF($L$9=$AD$10,AG18,AG25) -> Mright | AH32: =AH25 -> 1 | AI32: =IF($L$9=$AD$10,AI18,AI25) -> 0 | AJ32: 3.75 | AK32: 2.083333333 | AL32: 0 | AM32: 3.75 | AN32: 3.125 | AP32: top | AS32: =IF((AD53+AQ16/2)<N25,(N25-AD53-AQ16/2)*(AD52+AQ16/2-(N25-AD53-AQ16/2)/2)/(AD52+AQ16/2),0) -> 0 | AV32: =AS32 -> 0 | AX32: column | AY32: =AY16 -> 0.45
AD33: Diagram data: | AP33: bottom | AS33: =IF((AD53+AQ16/2)>=N25,N25*N25/2/(AD53+AQ16/2),(AD53+AQ16/2)/2) -> 0 | AV33: =AS33 -> 0 | AX33: left | AY33: 0 | AZ33: =AD52/2 -> 3 | BA33: =IF(AH17=1,N17/2,AD52/2) -> 2.5 | BB33: 0 | BC33: =AZ33 -> 3 | BD33: =AZ33 -> 3
AD34: panel height | AE34: =IF($L$9=$AD$9,"","H = "&FIXED(N17,2)&"m") -> H = 5.00m | AQ34: Applied loads | AX34: right | AY34: 0 | AZ34: =AD53/2 -> 3 | BA34: =IF(AH18=1,N17/2,AD53/2) -> 2.5 | BB34: 0 | BC34: =AZ34 -> 3 | BD34: =AZ34 -> 3
AD35: panel left side length | AE35: =IF($L$9=$AD$9,"","w1 = "&FIXED(AD52,2)&"m") -> w1 = 6.00m | AG35: Diagram visibility: | AI35: select | AJ35: beam/col | AK35: stand/conserv | AL35: free/edge load/standard | AM35: overlap | AN35: handrail/barrier | AP35: top | AS35: =AS32*$N$23 -> 0 | AV35: =AS35 -> 0 | AY35: Applied loads
AD36: panel right side length | AE36: =IF($L$9=$AD$9,"","w2 = "&FIXED(AD53,2)&"m") -> w2 = 6.00m | AG36: Left_Overlap | AI36: =AND(AJ36,AK36,AL36,AM36,AN36) -> FALSE | AJ36: =$L$9=$AD$10 -> TRUE | AK36: =$L$10=$AD$14 -> TRUE | AL36: =L14=AD19 -> TRUE | AM36: =$AH$17=0 -> FALSE | AN36: TRUE | AP36: bottom | AS36: =AS33*$N$23 -> 0 | AV36: =AS36 -> 0 | AX36: column | AY36: =AY32*$N$23 -> 0
AD37: column width | AE37: =IF($L$9=$AD$9,"",IF(L13=AF9,"0.45m","2x0.45m")) -> 0.45m | AG37: Right_Overlap | AI37: FALSE | AJ37: =$L$9=$AD$10 -> TRUE | AK37: =$L$10=$AD$14 -> TRUE | AL37: =L15=AD19 -> TRUE | AM37: =$AH$18=0 -> FALSE | AN37: TRUE | AX37: left | AY37: 0 | AZ37: =AZ33*$N$23 -> 0 | BA37: 0 | BB37: 0 | BC37: =BC33*$N$23 -> 0 | BD37: 0
AD38: beam panel length | AE38: =IF($L$9=$AD$9,"L = "&FIXED(N17,2)&"m","") ->  | AG38: Left_Conservative | AI38: FALSE | AJ38: TRUE | AK38: =$L$10=$AD$13 -> FALSE | AL38: =L14=AD19 -> TRUE | AM38: TRUE | AN38: TRUE | AQ38: percetnage of load | AT38: Beam - barrier line | AX38: right | AY38: 0 | AZ38: 0 | BA38: 0 | BB38: 0 | BC38: 0 | BD38: 0
AD39: beam panel upper height | AE39: =IF($L$9=$AD$9,"w1 = "&FIXED(AD52,2)&"m","") ->  | AG39: Right_Conservative | AI39: FALSE | AJ39: TRUE | AK39: FALSE | AL39: =L15=AD19 -> TRUE | AM39: TRUE | AN39: TRUE | AP39: top | AS39: =IF((AD53+AQ16/2)<N25,(AD52+AQ16+AD53-N25)/(AD52+AQ16/2),0) -> 0 | AV39: =AS39 -> 0
AD40: beam panel lower height | AE40: =IF($L$9=$AD$9,"w2 = "&FIXED(AD53,2)&"m","") ->  | AG40: Left_Standard | AI40: TRUE | AJ40: TRUE | AK40: =$L$10=$AD$14 -> TRUE | AL40: =L14=AD19 -> TRUE | AM40: =$AH$17=1 -> TRUE | AN40: TRUE | AP40: bottom | AS40: =IF(AND(L15=AD17,N25<=AQ16/2),1,IF((AD53+AQ16/2)>=N25,N25/(AD53+AQ16/2),0)) -> 0 | AV40: =AS40 -> 0 | AY40: Load widths | BB40: Column - barrier line
AD41: beam width | AE41: =IF($L$9=$AD$9,IF(L13=AF9,"0.225m","2x0.225m"),"") ->  | AG41: Right_Standard | AI41: TRUE | AJ41: TRUE | AK41: TRUE | AL41: =L15=AD19 -> TRUE | AM41: =$AH$18=1 -> TRUE | AN41: TRUE | AQ41: Applied loads | AX41: column | AY41: =AY16 -> 0.45
AD42: equal distance | AE42: II | AG42: Left_Free_Edge | AI42: FALSE | AJ42: TRUE | AK42: TRUE | AL42: =L14=AD17 -> FALSE | AM42: TRUE | AN42: TRUE | AP42: top | AS42: =AS39*$N$24 -> 0 | AV42: =AS42 -> 0 | AX42: left | AY42: 0 | AZ42: =AD52/2 -> 3 | BA42: =IF(AH17=1,N17/2,AD52/2) -> 2.5 | BB42: 0 | BC42: =AZ42 -> 3 | BD42: =AZ42 -> 3
AG43: Right_Free_Edge | AI43: FALSE | AJ43: TRUE | AK43: TRUE | AL43: =L15=AD17 -> FALSE | AM43: TRUE | AN43: TRUE | AP43: bottom | AS43: =AS40*$N$24 -> 0 | AV43: =AS43 -> 0 | AX43: right | AY43: 0 | AZ43: =AD53/2 -> 3 | BA43: =IF(AH18=1,N17/2,AD53/2) -> 2.5 | BB43: 0 | BC43: =AZ43 -> 3 | BD43: =AZ43 -> 3
AD44: Partial material factors: | AG44: Left_Free_Edge_Load | AI44: FALSE | AJ44: TRUE | AK44: TRUE | AL44: =L14=AD18 -> FALSE | AM44: TRUE | AN44: TRUE | AY44: Applied loads
AD45: 2 | AG45: Right_Free_Edge_Load | AI45: FALSE | AJ45: TRUE | AK45: TRUE | AL45: =L15=AD18 -> FALSE | AM45: TRUE | AN45: TRUE | AX45: column | AY45: =AY41*$N$24 -> 0
AD46: 2.4 | AG46: Beam_Upper | AI46: FALSE | AJ46: =$L$9=$AD$9 -> FALSE | AK46: TRUE | AL46: =OR(L15=AD17,L15=AD18) -> FALSE | AM46: =AND(L14=AD19,OR(L15=AD17,L15=AD18)) -> FALSE | AN46: TRUE | AX46: left | AY46: 0 | AZ46: =AZ42*$N$24 -> 0 | BA46: 0 | BB46: 0 | BC46: 0 | BD46: 0
AG47: Beam_Lower | AI47: FALSE | AJ47: =$L$9=$AD$9 -> FALSE | AK47: TRUE | AL47: =AND(NOT(AND(L14=AD18,L15=AD19)),OR(L14=AD17,L14=AD18)) -> FALSE | AM47: =AND(L15=AD19,OR(L14=AD17,L14=AD18)) -> FALSE | AN47: TRUE | AX47: right | AY47: 0 | AZ47: 0 | BA47: 0 | BB47: 0 | BC47: 0 | BD47: 0
AD48: Colour coding: | AG48: Beam_Standard | AI48: FALSE | AJ48: FALSE | AK48: TRUE | AL48: =NOT(AND(L14=AD18,L15=AD19)) -> TRUE | AM48: =AND(L14=AD19,L15=AD19) -> TRUE | AN48: TRUE
AD49: X19:AA19 | AG49: Beam_Free_Edge_Load | AI49: FALSE | AJ49: FALSE | AK49: TRUE | AL49: =AND(L14=AD18,L15=AD19) -> FALSE | AM49: TRUE | AN49: TRUE
AG50: Column_Left_Handrail_Short | AI50: FALSE | AJ50: =$L$9=$AD$10 -> TRUE | AK50: =$L$10=$AD$14 -> TRUE | AL50: =$L$14=$AD$19 -> TRUE | AM50: =$AH$17=0 -> FALSE | AN50: =$N$24<>0 -> FALSE
AD51: Distances: | AG51: Column_Left_Handrail_Long | AI51: =AND(AJ51,AK51,AL51,AM51,AN51) -> FALSE | AJ51: =$L$9=$AD$10 -> TRUE | AK51: TRUE | AL51: =OR($L$14=$AD$18,AND($L$10=$AD$13,$L$14=$AD$19),$AH$17=1) -> TRUE | AM51: =OR($AH$17=0,AND($L$14<>$AD$17,$AH$17=1)) -> TRUE | AN51: =$N$24<>0 -> FALSE
AD52: =IF(AND(L9=AD9,L14=AD17),0,N18) -> 6 | AG52: Column_Right_Handrail_Short | AI52: FALSE | AJ52: =$L$9=$AD$10 -> TRUE | AK52: =$L$10=$AD$14 -> TRUE | AL52: =$L$15=$AD$19 -> TRUE | AM52: =$AH$18=0 -> FALSE | AN52: FALSE
AA53: NOTE: This diagram is indicative only. It is not to scale. | AD53: =IF(AND(L9=AD9,L15=AD17),0,N19) -> 6 | AG53: Column_Right_Handrail_Long | AI53: FALSE | AJ53: =$L$9=$AD$10 -> TRUE | AK53: TRUE | AL53: =OR($L$15=$AD$18,AND($L$10=$AD$13,$L$15=$AD$19),$AH$18=1) -> TRUE | AM53: =OR($AH$18=0,AND($L$15<>$AD$17,$AH$18=1)) -> TRUE | AN53: FALSE
AG54: Column_Left_Barrier_Short | AI54: FALSE | AJ54: TRUE | AK54: =$L$10=$AD$14 -> TRUE | AL54: =$L$14=$AD$19 -> TRUE | AM54: =$AH$17=0 -> FALSE | AN54: =$N$23<>0 -> FALSE
C55: NOTES: | AG55: Column_Left_Barrier_Long | AI55: FALSE | AJ55: TRUE | AK55: TRUE | AL55: =OR($L$14=$AD$18,AND($L$10=$AD$13,$L$14=$AD$19),$AH$17=1) -> TRUE | AM55: =OR($AH$17=0,AND($L$14<>$AD$17,$AH$17=1)) -> TRUE | AN55: =$N$23<>0 -> FALSE
C56: 1. Clear span between columns is edge-to-edge of columns (not centre-to-centre); | AG56: Column_Right_Barrier_Short | AI56: FALSE | AJ56: TRUE | AK56: =$L$10=$AD$14 -> TRUE | AL56: =$L$15=$AD$19 -> TRUE | AM56: =$AH$18=0 -> FALSE | AN56: FALSE
C57: 2. Classic "back of envelope" failure of the panel is assumed to occur with 45° yield lines at corners; | AG57: Column_Right_Barrier_Long | AI57: FALSE | AJ57: =$L$9=$AD$10 -> TRUE | AK57: TRUE | AL57: =OR($L$15=$AD$18,AND($L$10=$AD$13,$L$15=$AD$19),$AH$18=1) -> TRUE | AM57: =OR($AH$18=0,AND($L$15<>$AD$17,$AH$18=1)) -> TRUE | AN57: FALSE
C58: 3. Wall panel infills to be designed separately according to BS EN1996-1.1. | AG58: Beam_Handrail | AI58: FALSE | AJ58: =$L$9=$AD$9 -> FALSE | AK58: TRUE | AL58: TRUE | AM58: TRUE | AN58: =$N$24<>0 -> FALSE
C59: 4. Wi Columns are designed as simply supported columns, with pinned connection at head and base. Head connection is always required. | AG59: Beam_Barrier | AI59: FALSE | AJ59: =$L$9=$AD$9 -> FALSE | AK59: TRUE | AL59: TRUE | AM59: TRUE | AN59: FALSE
C63: Spreadsheet by: www.YourSpreadsheets.co.uk | M63: based on BS EN1996-1 and Lucideon's test results of Wembley Innovation Wi System | AD63: Performance
AD64: Standard
AD65: High

Sheet from authors
B1: Version: 1.8 | E1: © 2023 YourSpreadsheets and Wembley Innovation
C3: For latest updates and news visit: | G3: Contact us at:
C4: http://www.wembleyinnovation.co.uk | G4: info@wembleyinnovation.co.uk
C8: General information: Note: This spreadsheet contains macros. To change company logo: right click it and select 'change picture'.
C14: The Authors take no liability for use of this spreadsheet and give no guarantee that it is error free. In no event shall the Authors be responsible for any special, incidental or consequential damages whatsoever arising from the use of this spreadsheet, even if the Authors have been advised of the possibility of such damage. This is a company licensed version of the spreadsheet. Within the workplace, the spreadsheet is not limited to any number of computers and can be transferred freely. Reverse-engineering, decompiling or disassembling of this spreadsheet is not allowable. Anti-virus and anti-malware checks should be carried out by the user prior to installation of this spreadsheet. By using this spreadsheet you understand and agree with the above terms and conditions. You also acknowledge that you do not become the owner of this spreadsheet. Damian Janicki & Wembley Innovation Ltd
C36: The intention of the Wi System is to provide structural support to laterally loaded masonry panels. The Wi System eliminates concrete/steel windposts and lintels giving cost-effective and aesthetic structural solutions. To download the Lucideon Design Guide which forms the basis for using the Wi System click here:
C42: Lucideon Design Guide (PDF)
C44: For more information on Wembley Innovation and to order Wi Beams / Wi Columns:
C45: www.wembleyinnovation.co.uk
C46: info@wembleyinnovation.co.uk
C47: or call +44 (0)20 8903 4527
C51: This spreadsheet is based on EN1996-1 and Lucideon's test results of the Wi System. Changelog: 2023.09.12 - V.1.8 - Notes revised 2020.08.01 - V.1.7 - SP option removed - Update check and notification added - Contacts updated 2018.08.10 - v.1.6 - Wi Column capacities revised following new testing at Lucideon labs. 2017.07.31 - v.1.5. - SP capacities added. 2015.01.28 - v.1.4. - added reactions to the spreadsheet. 2014.09.10 - v.1.3. - revised allowable bending moment values for Wi Columns following amendments to EC6. Some minor changes to how moments are calculated. Revised colour coding functionality. 2014.07.28 - v.1.2. - revised diagrams for clearer information. Added some extra functionality. 2014.06.18 - v.1.1. - first release of the spreadsheet.
